fUST/lending_fUST_20250417
["ID","MTS","AMOUNT","RATE_DAILY","PERIOD"]
[358276346,1744891847811,-500.0,0.00021917,2]
[358276347,1744891847821,-595.15,0.00021917,2]
[358276350,1744891847831,-721.36,0.00021917,2]
[358276352,1744891847841,-500.0,0.00021917,2]
[358276354,1744891847850,-631.59,0.00021917,2]
[358276356,1744891847859,-502.4637224,0.00021917,2]
[358276358,1744891847869,-566.16,0.00021917,2]
[358276360,1744891847878,-667.07,0.00021917,2]
[358276362,1744891847888,-1095.39,0.00021917,2]
[358276363,1744891847897,-350.66812157,0.00021917,2]
[358276364,1744891847905,-1221.07,0.00021917,2]
[358276365,1744891847914,-998.77,0.00021917,2]
[358276366,1744891847924,-500.0,0.00021917,2]
[358276367,1744891847932,-798.83917031,0.00021917,2]
[358277899,1744893031896,-178.38586615,0.00019817,2]
[358277900,1744893031906,-240.419685,0.00020911,2]
[358277901,1744893031916,-414.1104975,0.00020917,2]
[358277902,1744893031926,-500.0,0.00021371,2]
[358277903,1744893031937,-345.2340429,0.00021588,2]
[358277904,1744893031947,-633.0,0.000219,2]
[358277905,1744893031959,-317.8422,0.000219,2]
[358277906,1744893031970,-207.4,0.00021904,2]
[358277907,1744893031980,-300.0,0.00021911,2]
[358277908,1744893031989,-300.0,0.00021911,2]
[358277909,1744893032000,-219.93332648,0.00021912,2]
[358277910,1744893032009,-500.0,0.00021912,2]
[358277911,1744893032019,-500.0,0.00021912,2]
[358277912,1744893032028,-500.0,0.00021912,2]
[358277913,1744893032037,-500.0,0.00021912,2]
[358277914,1744893032048,-500.0,0.00021912,2]
[358277915,1744893032058,-500.0,0.00021912,2]
[358277916,1744893032067,-500.0,0.00021912,2]
[358277917,1744893032077,-500.0,0.00021912,2]
[358277918,1744893032086,-500.0,0.00021912,2]
[358277919,1744893032096,-500.0,0.00021912,2]
[358277920,1744893032106,-500.0,0.00021912,2]
[358277921,1744893032116,-500.0,0.00021912,2]
[358277922,1744893032126,-500.0,0.00021912,2]
[358277923,1744893032135,-500.0,0.00021912,2]
[358277924,1744893032145,-500.0,0.00021912,2]
[358277925,1744893032154,-500.0,0.00021912,2]
[358277926,1744893032164,-500.0,0.00021912,2]
[358277927,1744893032173,-500.0,0.00021912,2]
[358277928,1744893032184,-500.0,0.00021912,2]
[358277929,1744893032194,-500.0,0.00021912,2]
[358277930,1744893032203,-500.0,0.00021912,2]
[358277931,1744893032213,-500.0,0.00021912,2]
[358277932,1744893032224,-500.0,0.00021912,2]
[358277933,1744893032233,-500.0,0.00021912,2]
[358277934,1744893032242,-500.0,0.00021912,2]
[358277935,1744893032252,-500.0,0.00021912,2]
[358277936,1744893032262,-500.0,0.00021912,2]
[358277937,1744893032273,-500.0,0.00021912,2]
[358277938,1744893032513,-500.0,0.00021912,2]
[358277939,1744893032523,-500.0,0.00021912,2]
[358277940,1744893032532,-500.0,0.00021912,2]
[358277941,1744893032541,-500.0,0.00021912,2]
[358277942,1744893032551,-500.0,0.00021912,2]
[358277943,1744893032560,-438.00405482,0.00021912,2]
[358277944,1744893032569,-500.0,0.00021912,2]
[358277945,1744893032579,-500.0,0.00021912,2]
[358277946,1744893032588,-500.0,0.00021912,2]
[358277947,1744893032597,-500.0,0.00021912,2]
[358277948,1744893032606,-500.0,0.00021912,2]
[358277949,1744893032616,-500.0,0.00021912,2]
[358277950,1744893032625,-500.0,0.00021912,2]
[358277951,1744893032634,-500.0,0.00021912,2]
[358277952,1744893032643,-500.0,0.00021912,2]
[358277953,1744893032653,-500.0,0.00021912,2]
[358277954,1744893032662,-500.0,0.00021912,2]
[358277955,1744893032671,-500.0,0.00021912,2]
[358277956,1744893032681,-500.0,0.00021912,2]
[358277957,1744893032690,-500.0,0.00021912,2]
[358277958,1744893032700,-500.0,0.00021912,2]
[358277959,1744893032709,-500.0,0.00021912,2]
[358277960,1744893032718,-500.0,0.00021912,2]
[358277961,1744893032728,-500.0,0.00021912,2]
[358277962,1744893032738,-500.0,0.00021912,2]
[358277963,1744893032747,-500.0,0.00021912,2]
[358277964,1744893032756,-500.0,0.00021912,2]
[358277965,1744893032766,-500.0,0.00021912,2]
[358277966,1744893032775,-500.0,0.00021912,2]
[358277967,1744893032784,-500.0,0.00021912,2]
[358277968,1744893032794,-500.0,0.00021912,2]
[358277969,1744893032803,-500.0,0.00021912,2]
[358277970,1744893032813,-500.0,0.00021912,2]
[358277971,1744893032824,-500.0,0.00021912,2]
[358277972,1744893032835,-500.0,0.00021912,2]
[358277973,1744893032846,-400.0,0.00021912,2]
[358277974,1744893032855,-500.0,0.00021912,2]
[358277975,1744893032867,-246.69821004,0.00021912,2]
[358277976,1744893032883,-253.30178996,0.00021912,2]
[358277977,1744893032893,-160.80870754,0.00021912,2]
[358277978,1744893032905,-339.19129246,0.00021912,2]
[358277979,1744893032914,-500.0,0.00021912,2]
[358277980,1744893032924,-500.0,0.00021912,2]
[358277981,1744893032934,-500.0,0.00021912,2]
[358277982,1744893032944,-500.0,0.00021912,2]
[358277983,1744893032954,-500.0,0.00021912,2]
[358277984,1744893032967,-156.81,0.00021912,2]
[358277985,1744893032977,-330.71053924,0.00021916,2]
[358277986,1744893032987,-151.0,0.00021916,2]
[358277987,1744893032997,-151.0,0.00021916,2]
[358277988,1744893033007,-151.0,0.00021916,2]
[358277989,1744893033017,-4978.2631614,0.00021917,2]
[358277990,1744893033027,-1084.58375147,0.00021917,3]
[358277991,1744893033037,-500.0,0.00021917,2]
[358277992,1744893033047,-500.0,0.00021917,2]
[358277993,1744893033057,-33.72183987,0.00021917,2]
[358278013,1744893038312,-466.27816013,0.00021917,2]
[358278015,1744893038322,-500.0,0.00021917,2]
[358278017,1744893038331,-151.0,0.00021917,2]
[358278018,1744893038341,-160.93003569,0.00021917,2]
[358278057,1744893046248,-245.21105193,0.00019817,2]
[358278058,1744893046259,-327.9723408,0.00021588,2]
[358278059,1744893046269,-300.71660727,0.00021917,2]
[358278376,1744894064736,-381.75899782,0.00019,2]
[358278499,1744894236359,-163.47403462,0.000189,2]
[358278500,1744894236369,-300.0,0.00018999,2]
[358278501,1744894236379,-300.0,0.00018999,2]
[358278502,1744894236389,-9058.24100218,0.00019,2]
[358278503,1744894236399,-9445.01666973,0.00019,2]
[358278573,1744894238371,-348.28,0.00019,2]
[358278788,1744894240569,-0.00211666,0.00019,2]
[358278790,1744894240582,-402.52032658,0.00019,2]
[358279024,1744894243220,-7220.66710706,0.00019,2]
[358279026,1744894243233,-137.31386483,0.00019,2]
[358279028,1744894243243,-359.3838135,0.00019717,2]
[358279030,1744894243252,-240.419686,0.00020486,2]
[358279031,1744894243262,-420.0,0.00020709,2]
[358279032,1744894243271,-420.0,0.0002081,2]
[358279033,1744894243280,-311.5737238,0.00021588,2]
[358279034,1744894243290,-2287.69572358,0.00021798,2]
[358279035,1744894243304,-500.0,0.00021897,2]
[358279036,1744894243313,-500.0,0.00021897,2]
[358279037,1744894243322,-500.0,0.00021897,2]
[358279038,1744894243331,-500.0,0.00021897,2]
[358279039,1744894243341,-500.0,0.00021897,2]
[358279040,1744894243350,-433.80040548,0.00021897,2]
[358279041,1744894243359,-2404.0,0.000219,7]
[358279042,1744894243368,-156.81,0.000219,2]
[358279043,1744894243378,-313.4714053,0.000219,2]
[358279045,1744894243387,-153.0,0.000219,2]
[358279047,1744894243397,-317.0,0.000219,2]
[358279049,1744894243407,-207.4,0.00021904,2]
[358279051,1744894243418,-348.28,0.00021907,2]
[358279053,1744894243427,-150.634,0.00021907,2]
[358279056,1744894243437,-401.992,0.00021907,2]
[358279057,1744894243446,-9567.27871533,0.00021917,2]
[358279059,1744894243456,-5222.45994774,0.00021917,3]
[358279061,1744894243465,-500.0,0.00021917,2]
[358279063,1744894243475,-651.4,0.00021917,2]
[358279065,1744894243484,-500.0,0.00021917,2]
[358279067,1744894243494,-500.0,0.00021917,2]
[358279069,1744894243503,-500.0,0.00021917,2]
[358279071,1744894243514,-500.0,0.00021917,2]
[358279073,1744894243523,-500.0,0.00021917,2]
[358279075,1744894243533,-500.0,0.00021917,2]
[358279077,1744894243542,-500.0,0.00021917,2]
[358279079,1744894243552,-500.0,0.00021917,2]
[358279081,1744894243561,-500.0,0.00021917,2]
[358279083,1744894243571,-500.0,0.00021917,2]
[358279085,1744894243581,-500.0,0.00021917,2]
[358279087,1744894243590,-500.0,0.00021917,2]
[358279089,1744894243599,-500.0,0.00021917,2]
[358279091,1744894243610,-641.22,0.00021917,2]
[358279093,1744894243619,-500.0,0.00021917,2]
[358279095,1744894243628,-500.0,0.00021917,2]
[358279097,1744894243638,-500.0,0.00021917,2]
[358279099,1744894243647,-500.0,0.00021917,2]
[358279101,1744894243657,-500.0,0.00021917,2]
[358279103,1744894243667,-500.0,0.00021917,2]
[358279105,1744894243678,-550.38,0.00021917,2]
[358279107,1744894243687,-1463.55,0.00021917,2]
[358279109,1744894243697,-611.71,0.00021917,2]
[358279111,1744894243706,-500.0,0.00021917,2]
[358279113,1744894243715,-500.0,0.00021917,2]
[358279115,1744894243724,-500.0,0.00021917,2]
[358279117,1744894243734,-500.0,0.00021917,2]
[358279119,1744894243744,-500.0,0.00021917,2]
[358279121,1744894243754,-500.0,0.00021917,2]
[358279123,1744894243763,-500.0,0.00021917,2]
[358279125,1744894243772,-283.85941541,0.00021917,2]
[358279288,1744894246317,-216.14058459,0.00021917,2]
[358279289,1744894246328,-557.34,0.00021917,2]
[358279290,1744894246339,-500.0,0.00021917,2]
[358279291,1744894246349,-500.0,0.00021917,2]
[358279292,1744894246359,-500.0,0.00021917,2]
[358279293,1744894246368,-500.0,0.00021917,2]
[358279294,1744894246379,-422.71671576,0.00021917,2]
[358279295,1744894246390,-711.44,0.00021917,2]
[358279296,1744894246400,-500.0,0.00021917,2]
[358279297,1744894246410,-501.67,0.00021917,2]
[358279298,1744894246420,-664.32,0.00021917,2]
[358279299,1744894246430,-188.11810053,0.00021917,2]
[358279301,1744894246446,-311.88189947,0.00021917,2]
[358279303,1744894246456,-500.0,0.00021917,2]
[358279304,1744894246466,-742.3,0.00021917,2]
[358279306,1744894246476,-517.74,0.00021917,2]
[358279308,1744894246486,-500.0,0.00021917,2]
[358279310,1744894246496,-500.0,0.00021917,2]
[358279312,1744894246506,-575.51,0.00021917,2]
[358279314,1744894246516,-500.0,0.00021917,2]
[358279316,1744894246526,-500.0,0.00021917,2]
[358279318,1744894246536,-500.0,0.00021917,2]
[358279320,1744894246546,-519.46794305,0.00021917,2]
[358279322,1744894246555,-500.0,0.00021917,2]
[358279324,1744894246565,-500.0,0.00021917,2]
[358279326,1744894246574,-500.0,0.00021917,2]
[358279328,1744894246584,-500.0,0.00021917,2]
[358279330,1744894246594,-500.0,0.00021917,2]
[358279332,1744894246604,-229.39350384,0.00021917,2]
[358281870,1744894564925,-175.4370608,0.00019817,2]
[358281991,1744895320748,110152.04244655,0.0001801,2]
[358282121,1744895432514,-188.44805042,0.000189,2]
[358282122,1744895432526,-159.424964,0.00021479,3]
[358282123,1744895432538,-295.9950376,0.00021588,2]
[358282124,1744895432554,-2001.73375815,0.00021817,2]
[358282125,1744895432566,-207.4,0.00021904,2]
[358282126,1744895432577,-300.0,0.00021915,2]
[358282127,1744895432589,-300.0,0.00021915,2]
[358282128,1744895432600,-3216.78151912,0.00021916,2]
[358282129,1744895432611,-500.0,0.00021916,2]
[358282130,1744895432623,-500.0,0.00021916,2]
[358282131,1744895432634,-500.0,0.00021916,2]
[358282132,1744895432645,-500.0,0.00021916,2]
[358282133,1744895432656,-408.91665975,0.00021916,2]
[358282134,1744895432667,-500.0,0.00021916,2]
[358282135,1744895432678,-500.0,0.00021916,2]
[358282136,1744895432690,-220.95218166,0.00021916,2]
[358282137,1744895432701,-4000.0,0.00021916,3]
[358282138,1744895432713,-200.0,0.00021916,2]
[358282139,1744895432724,-24094.38838962,0.00021917,2]
[358282140,1744895432735,-2611.22997388,0.00021917,3]
[358282141,1744895432746,-500.0,0.00021917,2]
[358282142,1744895432757,-500.0,0.00021917,2]
[358282143,1744895432768,-575.14732838,0.00021917,2]
[358282144,1744895432779,-500.0,0.00021917,2]
[358282145,1744895432790,-500.0,0.00021917,2]
[358282146,1744895432803,-402.15412291,0.00021917,2]
[358282147,1744895432815,-500.0,0.00021917,2]
[358282148,1744895432826,-500.0,0.00021917,2]
[358282149,1744895432837,-500.0,0.00021917,2]
[358282150,1744895432848,-500.0,0.00021917,2]
[358282151,1744895432860,-500.0,0.00021917,2]
[358282152,1744895432871,-500.0,0.00021917,2]
[358282153,1744895432882,-500.0,0.00021917,2]
[358282154,1744895432893,-500.0,0.00021917,2]
[358282155,1744895432905,-500.0,0.00021917,2]
[358282156,1744895432916,-500.0,0.00021917,2]
[358282157,1744895432927,-500.0,0.00021917,2]
[358282158,1744895432939,-500.0,0.00021917,2]
[358282159,1744895432954,-524.98448047,0.00021917,2]
[358282160,1744895432966,-500.0,0.00021917,2]
[358282161,1744895432978,-500.0,0.00021917,2]
[358282162,1744895432990,-500.0,0.00021917,2]
[358282163,1744895433002,-500.0,0.00021917,2]
[358282164,1744895433014,-500.68954561,0.00021917,2]
[358282165,1744895433027,-500.0,0.00021917,2]
[358282166,1744895433039,-233.80972434,0.00021917,2]
[358282167,1744895433052,-503.23261005,0.00021917,2]
[358282168,1744895433064,-500.0,0.00021917,2]
[358282169,1744895433076,-500.0,0.00021917,2]
[358282170,1744895433088,-500.0,0.00021917,2]
[358282171,1744895433101,-500.0,0.00021917,2]
[358282172,1744895433113,-500.56301349,0.00021917,2]
[358282173,1744895433125,-509.00521888,0.00021917,2]
[358282174,1744895433137,-500.0,0.00021917,2]
[358282175,1744895433149,-500.0,0.00021917,2]
[358282176,1744895433161,-505.59019742,0.00021917,2]
[358282177,1744895433172,-500.0,0.00021917,2]
[358282178,1744895433183,-566.74071393,0.00021917,2]
[358282179,1744895433195,-500.0,0.00021917,2]
[358282180,1744895433207,-500.0,0.00021917,2]
[358282182,1744895433218,-500.0,0.00021917,2]
[358282183,1744895433229,-500.0,0.00021917,2]
[358282184,1744895433240,-500.0,0.00021917,2]
[358282185,1744895433252,-500.0,0.00021917,2]
[358282186,1744895433263,-500.0,0.00021917,2]
[358282187,1744895433275,-500.43008184,0.00021917,2]
[358282188,1744895433286,-500.0,0.00021917,2]
[358282189,1744895433299,-500.0,0.00021917,2]
[358282190,1744895433311,-500.0,0.00021917,2]
[358282191,1744895433323,-500.0,0.00021917,2]
[358282192,1744895433334,-500.0,0.00021917,2]
[358282193,1744895433345,-660.3,0.00021917,2]
[358282194,1744895433356,-500.0,0.00021917,2]
[358282195,1744895433367,-500.0,0.00021917,2]
[358282196,1744895433378,-500.0,0.00021917,2]
[358282197,1744895433389,-796.83,0.00021917,2]
[358282198,1744895433400,-556.69870642,0.00021917,2]
[358282199,1744895433411,-500.34521561,0.00021917,2]
[358282200,1744895433422,-500.0,0.00021917,2]
[358282201,1744895433435,-500.0,0.00021917,2]
[358282202,1744895433445,-500.63,0.00021917,2]
[358282203,1744895433457,-500.0,0.00021917,2]
[358282204,1744895433467,-500.0,0.00021917,2]
[358282205,1744895433478,-500.0,0.00021917,2]
[358282206,1744895433489,-752.39,0.00021917,2]
[358282207,1744895433500,-500.0,0.00021917,2]
[358282208,1744895433510,-500.0,0.00021917,2]
[358282209,1744895433521,-500.0,0.00021917,2]
[358282210,1744895433531,-500.0,0.00021917,2]
[358282211,1744895433542,-500.0,0.00021917,2]
[358282212,1744895433553,-500.0,0.00021917,2]
[358282213,1744895433564,-500.0,0.00021917,2]
[358282214,1744895433574,-855.24,0.00021917,2]
[358282215,1744895433585,-500.0,0.00021917,2]
[358282216,1744895433595,-500.0,0.00021917,2]
[358282217,1744895433607,-500.0,0.00021917,2]
[358282218,1744895433619,-500.0,0.00021917,2]
[358282219,1744895433630,-500.0,0.00021917,2]
[358282220,1744895433642,-500.0,0.00021917,2]
[358282221,1744895433654,-500.0,0.00021917,2]
[358282222,1744895433666,-500.0,0.00021917,2]
[358282223,1744895433677,-500.0,0.00021917,2]
[358282224,1744895433687,-500.0,0.00021917,2]
[358282225,1744895433698,-500.0,0.00021917,2]
[358282226,1744895433709,-500.0,0.00021917,2]
[358282227,1744895433720,-500.0,0.00021917,2]
[358282228,1744895433731,-500.0,0.00021917,2]
[358282229,1744895433742,-500.0,0.00021917,2]
[358282230,1744895433752,-500.0,0.00021917,2]
[358282231,1744895433762,-500.0,0.00021917,2]
[358282232,1744895433772,-626.42,0.00021917,2]
[358282233,1744895433782,-856.93,0.00021917,2]
[358282234,1744895433792,-596.68,0.00021917,2]
[358282235,1744895433803,-500.0,0.00021917,2]
[358282236,1744895433813,-500.0,0.00021917,2]
[358282237,1744895433823,-500.0,0.00021917,2]
[358282238,1744895433833,-500.0,0.00021917,2]
[358282239,1744895433843,-551.0,0.00021917,2]
[358282240,1744895433854,-1567.25,0.00021917,2]
[358282241,1744895434249,-500.0,0.00021917,2]
[358282242,1744895434271,-668.35,0.00021917,2]
[358282243,1744895434281,-500.0,0.00021917,2]
[358282244,1744895434291,-500.0,0.00021917,2]
[358282245,1744895434302,-781.7,0.00021917,2]
[358282246,1744895434312,-500.0,0.00021917,2]
[358282247,1744895434322,-500.0,0.00021917,2]
[358282248,1744895434331,-500.0,0.00021917,2]
[358282249,1744895434342,-1000.0,0.00021917,2]
[358282250,1744895434352,-654.31,0.00021917,2]
[358282251,1744895434361,-500.0,0.00021917,2]
[358282252,1744895434371,-174.16249524,0.00021917,2]
[358282253,1744895434381,-542.57,0.00021917,2]
[358282254,1744895434391,-511.71,0.00021917,2]
[358282255,1744895434401,-500.0,0.00021917,2]
[358282256,1744895434411,-620.65,0.00021917,2]
[358282257,1744895434421,-1049.74,0.00021917,2]
[358282258,1744895434430,-500.0,0.00021917,2]
[358282259,1744895434440,-1111.76,0.00021917,2]
[358282260,1744895434450,-160.0,0.00021917,2]
[358282261,1744895434460,-500.0,0.00021917,2]
[358282262,1744895434470,-815.9,0.00021917,2]
[358282263,1744895434479,-500.0,0.00021917,2]
[358282264,1744895434488,-500.0,0.00021917,2]
[358282265,1744895434498,-691.3,0.00021917,2]
[358282266,1744895434507,-500.0,0.00021917,2]
[358282267,1744895434517,-381.3855356,0.00021917,2]
[358282268,1744895434528,-500.0,0.00021917,2]
[358282269,1744895434537,-500.0,0.00021917,2]
[358282270,1744895434547,-500.0,0.00021917,2]
[358282271,1744895434557,-584.21,0.00021917,2]
[358282272,1744895434567,-500.0,0.00021917,2]
[358282273,1744895434576,-1463.62,0.00021917,2]
[358282274,1744895434586,-500.0,0.00021917,2]
[358282275,1744895434596,-611.44423951,0.00021917,2]
[358282276,1744895434605,-1170.19,0.00021917,2]
[358282277,1744895434615,-605.27,0.00021917,2]
[358282278,1744895434625,-1088.64,0.00021917,2]
[358282279,1744895434635,-500.0,0.00021917,2]
[358282280,1744895434644,-500.0,0.00021917,2]
[358282281,1744895434655,-500.0,0.00021917,2]
[358282282,1744895434665,-1339.91,0.00021917,2]
[358282283,1744895434675,-241.4381194,0.00021917,2]
[358282284,1744895434685,-500.0,0.00021917,2]
[358282285,1744895434695,-151.0,0.00021917,2]
[358282286,1744895434705,-500.0,0.00021917,2]
[358282287,1744895434714,-832.62,0.00021917,2]
[358282288,1744895434724,-500.0,0.00021917,2]
[358282289,1744895434734,-1700.54,0.00021917,2]
[358282290,1744895434744,-500.0,0.00021917,2]
[358282291,1744895434754,-500.0,0.00021917,2]
[358282292,1744895434764,-500.0,0.00021917,2]
[358282293,1744895434773,-545.04,0.00021917,2]
[358282294,1744895434783,-167.17558267,0.00021917,2]
[358282295,1744895434791,-500.0,0.00021917,2]
[358282296,1744895434802,-500.0,0.00021917,2]
[358282297,1744895434812,-1025.18,0.00021917,2]
[358282298,1744895434822,-500.0,0.00021917,2]
[358282299,1744895434831,-391.63814497,0.00021917,2]
[358282300,1744895434841,-550.84,0.00021917,2]
[358282301,1744895434851,-500.0,0.00021917,2]
[358282302,1744895434860,-500.0,0.00021917,2]
[358282303,1744895434870,-500.0,0.00021917,2]
[358282304,1744895434880,-502.69893315,0.00021917,2]
[358282305,1744895434890,-500.0,0.00021917,2]
[358282306,1744895434900,-500.0,0.00021917,2]
[358282307,1744895434909,-500.0,0.00021917,2]
[358282308,1744895434919,-500.0,0.00021917,2]
[358282309,1744895434928,-500.0,0.00021917,2]
[358282310,1744895434937,-977.09,0.00021917,2]
[358282311,1744895434948,-500.0,0.00021917,2]
[358282312,1744895434959,-582.37,0.00021917,2]
[358282313,1744895434969,-500.0,0.00021917,2]
[358282314,1744895434978,-562.84,0.00021917,2]
[358282315,1744895434988,-500.0,0.00021917,2]
[358282316,1744895434998,-500.0,0.00021917,2]
[358282317,1744895435008,-500.0,0.00021917,2]
[358282318,1744895435018,-500.0,0.00021917,2]
[358282319,1744895435029,-1131.26,0.00021917,2]
[358282320,1744895435039,-1138.39,0.00021917,2]
[358282321,1744895435048,-500.0,0.00021917,2]
[358282322,1744895435058,-592.62,0.00021917,2]
[358282323,1744895435068,-500.0,0.00021917,2]
[358282324,1744895435078,-545.02,0.00021917,2]
[358282325,1744895435088,-500.0,0.00021917,2]
[358282326,1744895435098,-680.13,0.00021917,2]
[358282327,1744895435108,-500.0,0.00021917,2]
[358282328,1744895435119,-1338.25,0.00021917,2]
[358282329,1744895435129,-719.81,0.00021917,2]
[358282330,1744895435138,-243.93906821,0.00021917,2]
[358282331,1744895435148,-500.0,0.00021917,2]
[358282332,1744895435157,-500.0,0.00021917,2]
[358282333,1744895435167,-508.32155499,0.00021917,2]
[358282334,1744895435177,-1282.11,0.00021917,2]
[358282335,1744895435187,-1955.48,0.00021917,2]
[358282336,1744895435196,-762.82,0.00021917,2]
[358282337,1744895435206,-960.5,0.00021917,2]
[358282338,1744895435216,-500.0,0.00021917,2]
[358282339,1744895435225,-500.0,0.00021917,2]
[358282340,1744895435235,-500.0,0.00021917,2]
[358282341,1744895435244,-500.0,0.00021917,2]
[358282342,1744895435254,-397.59169717,0.00021917,2]
[358282343,1744895435264,-500.0,0.00021917,2]
[358282344,1744895435274,-500.0,0.00021917,2]
[358282345,1744895435283,-500.0,0.00021917,2]
[358282346,1744895435292,-866.07,0.00021917,2]
[358282347,1744895435303,-500.0,0.00021917,2]
[358282348,1744895435313,-500.0,0.00021917,2]
[358282349,1744895435322,-500.0,0.00021917,2]
[358282350,1744895435332,-500.0,0.00021917,2]
[358282351,1744895435342,-1722.34,0.00021917,2]
[358282352,1744895435351,-500.0,0.00021917,2]
[358282353,1744895435360,-738.88,0.00021917,2]
[358282354,1744895435368,-500.0,0.00021917,2]
[358282355,1744895435378,-500.0,0.00021917,2]
[358282356,1744895435388,-523.51,0.00021917,2]
[358282357,1744895435397,-501.26562701,0.00021917,2]
[358282358,1744895435407,-774.45,0.00021917,2]
[358282359,1744895435416,-500.0,0.00021917,2]
[358282360,1744895435426,-500.0,0.00021917,2]
[358282361,1744895435436,-500.0,0.00021917,2]
[358282362,1744895435445,-888.47,0.00021917,2]
[358282363,1744895435455,-1431.26,0.00021917,2]
[358282364,1744895435465,-599.51964485,0.00021917,2]
[358282365,1744895435474,-500.0,0.00021917,2]
[358282366,1744895435483,-571.08,0.00021917,2]
[358282367,1744895435493,-500.0,0.00021917,2]
[358282368,1744895435502,-500.0,0.00021917,2]
[358282369,1744895435512,-500.0,0.00021917,2]
[358282370,1744895435522,-773.39,0.00021917,2]
[358282371,1744895435531,-500.0,0.00021917,2]
[358282372,1744895435541,-646.32,0.00021917,2]
[358282373,1744895435550,-500.0,0.00021917,2]
[358282374,1744895435560,-777.85,0.00021917,2]
[358282375,1744895435570,-500.0,0.00021917,2]
[358282376,1744895435579,-500.0,0.00021917,2]
[358282377,1744895435588,-500.0,0.00021917,2]
[358282378,1744895435598,-575.68,0.00021917,2]
[358282379,1744895435608,-500.0,0.00021917,2]
[358282380,1744895435618,-1496.42,0.00021917,2]
[358282381,1744895435628,-500.0,0.00021917,2]
[358282382,1744895435637,-1647.99,0.00021917,2]
[358282383,1744895435647,-500.0,0.00021917,2]
[358282384,1744895435657,-500.0,0.00021917,2]
[358282385,1744895435667,-605.50502793,0.00021917,2]
[358282386,1744895435676,-551.72,0.00021917,2]
[358282387,1744895435686,-500.0,0.00021917,2]
[358282388,1744895435696,-885.77,0.00021917,2]
[358282389,1744895435705,-500.0,0.00021917,2]
[358282390,1744895435715,-687.24,0.00021917,2]
[358282391,1744895435725,-528.6,0.00021917,2]
[358282392,1744895435735,-500.0,0.00021917,2]
[358282393,1744895435746,-500.0,0.00021917,2]
[358282394,1744895435756,-500.0,0.00021917,2]
[358282395,1744895435768,-500.0,0.00021917,2]
[358282396,1744895435778,-1276.18,0.00021917,2]
[358282397,1744895435788,-500.0,0.00021917,2]
[358282398,1744895435798,-500.0,0.00021917,2]
[358282399,1744895435809,-702.94,0.00021917,2]
[358282400,1744895435819,-500.0,0.00021917,2]
[358282401,1744895435829,-500.0,0.00021917,2]
[358282402,1744895435839,-662.75,0.00021917,2]
[358282403,1744895435850,-500.0,0.00021917,2]
[358282404,1744895435859,-1869.81,0.00021917,2]
[358282405,1744895435869,-941.76,0.00021917,2]
[358282406,1744895435879,-500.0,0.00021917,2]
[358282407,1744895435888,-500.0,0.00021917,2]